[Event "NJSK 2021 Jeugd C"]
[Site "Almelo, Netherlands"]
[Date "2021.08.07"]
[Round "9.1"]
[White "De Winter, Arthur"]
[Black "Smeets, Kobe"]
[Result "1-0"]
[TimeControl "90min + 30sec/move"]
[WhiteElo "2000"]
[BlackElo "1897"]

1. e4 {[%clk 01:30:57]} {[%emt 00:00:02]} c5 {[%clk 01:30:54]} {[%emt
00:00:07]} 2. Nf3 {[%clk 01:31:24]} {[%emt 00:00:03]} e6 {[%clk 01:31:19]}
{[%emt 00:00:05]} 3. d4 {[%clk 01:31:52]} {[%emt 00:00:02]} cxd4 {[%clk
01:31:44]} {[%emt 00:00:06]} 4. Nxd4 {[%clk 01:32:17]} {[%emt 00:00:04]} Nc6
{[%clk 01:32:08]} {[%emt 00:00:06]} 5. Nc3 {[%clk 01:32:44]} {[%emt 00:00:03]}
Qc7 {[%clk 01:32:33]} {[%emt 00:00:05]} 6. g3 {[%clk 01:33:10]} {[%emt
00:00:04]} a6 {[%clk 01:32:58]} {[%emt 00:00:06]} 7. Bg2 {[%clk 01:33:36]}
{[%emt 00:00:03]} d6 {[%clk 01:33:05]} {[%emt 00:00:23]} 8. O-O {[%clk
01:33:51]} {[%emt 00:00:15]} Bd7 {[%clk 01:33:26]} {[%emt 00:00:09]} 9. Be3
{[%clk 01:28:33]} {[%emt 00:05:48]} Nf6 {[%clk 01:33:01]} {[%emt 00:00:55]} 10.
Qe2 {[%clk 01:23:39]} {[%emt 00:05:24]} Be7 {[%clk 01:29:26]} {[%emt 00:04:05]}
11. Nxc6 {[%clk 01:12:40]} {[%emt 00:11:29]} Bxc6 {[%clk 01:29:21]} {[%emt
00:00:35]} 12. f4 {[%clk 01:07:01]} {[%emt 00:06:09]} Rc8 {[%clk 01:14:05]}
{[%emt 00:15:45]} 13. Bd4 {[%clk 00:59:20]} {[%emt 00:08:12]} e5 {[%clk
01:10:39]} {[%emt 00:03:55]} 14. fxe5 {[%clk 00:57:14]} {[%emt 00:02:36]} dxe5
{[%clk 01:10:46]} {[%emt 00:00:23]} 15. Bf2 {[%clk 00:56:35]} {[%emt 00:01:09]}
Bb4 {[%clk 01:08:39]} {[%emt 00:02:38]} 16. Nd5 {[%clk 00:47:04]} {[%emt
00:10:01]} Bxd5 {[%clk 00:38:30]} {[%emt 00:30:39]} 17. exd5 {[%clk 00:47:28]}
{[%emt 00:00:05]} O-O {[%clk 00:38:49]} {[%emt 00:00:11]} 18. c3 {[%clk
00:45:08]} {[%emt 00:02:51]} Bc5 {[%clk 00:38:23]} {[%emt 00:00:55]} 19. Rad1
{[%clk 00:44:31]} {[%emt 00:01:07]} Rfd8 {[%clk 00:35:48]} {[%emt 00:03:05]} 20.
Kh1 {[%clk 00:43:19]} {[%emt 00:01:43]} Qd6 {[%clk 00:21:57]} {[%emt 00:14:20]}
21. Rfe1 {[%clk 00:39:36]} {[%emt 00:04:13]} Re8 {[%clk 00:19:42]} {[%emt
00:02:46]} 22. Be3 {[%clk 00:35:03]} {[%emt 00:05:02]} Bxe3 {[%clk 00:19:30]}
{[%emt 00:00:42]} 23. Qxe3 {[%clk 00:35:28]} {[%emt 00:00:05]} e4 {[%clk
00:19:36]} {[%emt 00:00:24]} 24. Qd4 {[%clk 00:31:51]} {[%emt 00:04:08]} Re5
{[%clk 00:16:45]} {[%emt 00:03:21]} 25. c4 {[%clk 00:28:54]} {[%emt 00:03:27]}
Rce8 {[%clk 00:14:31]} {[%emt 00:02:44]} 26. c5 {[%clk 00:26:16]} {[%emt
00:03:08]} Qxd5 {[%clk 00:13:00]} {[%emt 00:02:01]} 27. Qxd5 {[%clk 00:26:04]}
{[%emt 00:00:42]} Nxd5 {[%clk 00:13:28]} {[%emt 00:00:01]} 28. Rxe4 {[%clk
00:25:50]} {[%emt 00:00:45]} Rxe4 {[%clk 00:12:39]} {[%emt 00:01:19]} 29. Bxe4
{[%clk 00:26:15]} {[%emt 00:00:04]} Rxe4 {[%clk 00:13:03]} {[%emt 00:00:06]} 30.
Rxd5 {[%clk 00:26:41]} {[%emt 00:00:03]} g6 {[%clk 00:13:06]} {[%emt 00:00:28]}
31. Rd8+ {[%clk 00:24:59]} {[%emt 00:02:13]} Kg7 {[%clk 00:13:35]} {[%emt
00:00:02]} 32. Rb8 {[%clk 00:25:20]} {[%emt 00:00:08]} Re7 {[%clk 00:07:07]}
{[%emt 00:06:58]} 33. Kg2 {[%clk 00:25:08]} {[%emt 00:00:41]} Kf6 {[%clk
00:07:17]} {[%emt 00:00:20]} 34. Kf3 {[%clk 00:25:05]} {[%emt 00:00:34]} Ke5
{[%clk 00:06:07]} {[%emt 00:01:39]} 35. Rd8 {[%clk 00:25:18]} {[%emt 00:00:17]}
f5 {[%emt 00:02:26]} 36. h4 {[%clk 00:24:15]} Rc7 {[%clk 00:05:26]} {[%emt
00:00:48]} 37. b4 {[%clk 00:24:30]} {[%emt 00:00:16]} a5 {[%clk 00:03:16]}
{[%emt 00:02:40]} 38. a3 {[%clk 00:24:37]} {[%emt 00:00:23]} axb4 {[%clk
00:02:28]} {[%emt 00:01:19]} 39. axb4 {[%clk 00:25:02]} {[%emt 00:00:04]} Rc6
{[%emt 00:01:28]} 40. Rb8 {[%clk 00:22:41]} {[%emt 00:02:49]} Rc7 {[%clk
00:01:54]} {[%emt 00:00:07]} 41. Ke3 {[%clk 00:22:34]} {[%emt 00:00:37]} Rd7
{[%clk 00:02:18]} {[%emt 00:00:06]} 42. Re8+ {[%clk 00:20:23]} {[%emt
00:02:41]} Kf6 {[%clk 00:01:41]} {[%emt 00:01:07]} 43. b5 {[%clk 00:18:16]}
{[%emt 00:02:38]} Rc7 {[%clk 00:01:30]} {[%emt 00:00:41]} 44. Kd4 {[%clk
00:18:31]} {[%emt 00:00:15]} Kf7 {[%clk 00:01:18]} {[%emt 00:00:41]} 45. Rd8
{[%clk 00:17:09]} {[%emt 00:01:53]} Ke7 {[%emt 00:00:29]} 46. Rd6 {[%clk
00:17:26]} Rc8 {[%clk 00:01:18]} {[%emt 00:00:44]} 47. Kd5 {[%clk 00:17:20]}
{[%emt 00:00:37]} Rc7 {[%clk 00:01:25]} {[%emt 00:00:23]} 48. Re6+ {[%clk
00:13:46]} {[%emt 00:04:04]} Kf7 {[%clk 00:01:19]} {[%emt 00:00:35]} 49. c6
{[%clk 00:08:34]} {[%emt 00:05:42]} bxc6+ {[%clk 00:01:48]} {[%emt 00:00:01]}
50. Rxc6 {[%clk 00:08:53]} {[%emt 00:00:11]} Rb7 {[%clk 00:01:41]} {[%emt
00:00:36]} 51. b6 {[%clk 00:08:37]} {[%emt 00:00:46]} Ke7 {[%clk 00:01:41]}
{[%emt 00:00:30]} 52. Kc5 {[%clk 00:08:34]} {[%emt 00:00:34]} Kd7 {[%clk
00:01:35]} {[%emt 00:00:36]} 53. Rd6+ {[%clk 00:08:41]} {[%emt 00:00:22]} Ke7
{[%clk 00:01:56]} {[%emt 00:00:09]} 54. Rd4 {[%clk 00:08:30]} {[%emt 00:00:41]}
Rd7 {[%clk 00:00:34]} {[%emt 00:01:52]} 55. Rxd7+ {[%clk 00:08:46]} {[%emt
00:00:14]} 1-0

[Event "NJSK 2021 Jeugd C"]
[Site "Almelo, Netherlands"]
[Date "2021.08.07"]
[Round "9.2"]
[White "Arnold, Rhys"]
[Black "Kumar, Prajit Sai"]
[Result "0-1"]
[TimeControl "90min + 30sec/move"]
[WhiteElo "1748"]
[BlackElo "1811"]

1. d4 {[%clk 01:30:51]} {[%emt 00:00:09]} d5 {[%clk 01:30:56]} {[%emt
00:00:05]} 2. Nf3 {[%clk 01:31:13]} {[%emt 00:00:07]} Nf6 {[%clk 01:31:21]}
{[%emt 00:00:06]} 3. g3 {[%clk 01:31:22]} {[%emt 00:00:20]} b5 {[%clk
01:31:40]} {[%emt 00:00:11]} 4. a4 {[%clk 01:27:07]} {[%emt 00:04:45]} b4
{[%clk 01:32:03]} {[%emt 00:00:07]} 5. Bd2 {[%clk 01:27:25]} {[%emt 00:00:12]}
e6 {[%clk 01:32:20]} {[%emt 00:00:13]} 6. Bg2 {[%clk 01:27:17]} {[%emt
00:00:38]} Be7 {[%clk 01:31:59]} {[%emt 00:00:51]} 7. O-O {[%clk 01:27:22]}
{[%emt 00:00:25]} O-O {[%clk 01:32:21]} {[%emt 00:00:09]} 8. e3 {[%clk
01:26:37]} {[%emt 00:01:14]} Ba6 {[%clk 01:27:46]} {[%emt 00:05:06]} 9. Re1
{[%clk 01:26:42]} {[%emt 00:00:24]} Nbd7 {[%clk 01:26:20]} {[%emt 00:01:56]} 10.
Ne5 {[%clk 01:23:50]} {[%emt 00:03:22]} Nxe5 {[%clk 01:22:24]} {[%emt
00:04:27]} 11. dxe5 {[%clk 01:24:12]} {[%emt 00:00:07]} Nd7 {[%clk 01:22:49]}
{[%emt 00:00:05]} 12. f4 {[%clk 01:24:20]} {[%emt 00:00:22]} f5 {[%clk
01:16:49]} {[%emt 00:06:30]} 13. Kh1 {[%clk 01:20:47]} {[%emt 00:04:02]} Rb8
{[%clk 01:15:13]} {[%emt 00:02:08]} 14. Bf1 {[%clk 01:15:01]} {[%emt 00:06:16]}
Bb7 {[%clk 01:14:18]} {[%emt 00:01:25]} 15. Bg2 {[%clk 01:06:50]} {[%emt
00:08:39]} a5 {[%clk 01:09:41]} {[%emt 00:05:08]} 16. b3 {[%clk 01:05:40]}
{[%emt 00:01:41]} Nc5 {[%clk 01:04:40]} {[%emt 00:05:30]} 17. Bc1 {[%clk
01:03:20]} {[%emt 00:02:50]} Qd7 {[%clk 00:52:42]} {[%emt 00:12:28]} 18. Bb2
{[%clk 01:02:02]} {[%emt 00:01:47]} Rbd8 {[%clk 00:49:03]} {[%emt 00:04:09]} 19.
Nd2 {[%clk 01:01:16]} {[%emt 00:01:16]} Ba6 {[%clk 00:48:39]} {[%emt 00:00:54]}
20. Bf1 {[%clk 00:59:52]} {[%emt 00:01:53]} Bxf1 {[%clk 00:46:20]} {[%emt
00:02:50]} 21. Rxf1 {[%clk 01:00:15]} {[%emt 00:00:06]} Ne4 {[%clk 00:45:07]}
{[%emt 00:01:43]} 22. Nxe4 {[%clk 00:57:53]} {[%emt 00:02:53]} dxe4 {[%clk
00:45:04]} {[%emt 00:00:33]} 23. Qxd7 {[%clk 00:57:53]} {[%emt 00:00:29]} Rxd7
{[%clk 00:45:26]} {[%emt 00:00:09]} 24. Rad1 {[%clk 00:58:04]} {[%emt
00:00:19]} Rfd8 {[%clk 00:45:49]} {[%emt 00:00:07]} 25. Rxd7 {[%clk 00:58:25]}
{[%emt 00:00:10]} Rxd7 {[%clk 00:46:18]} {[%emt 00:00:01]} 26. Rf2 {[%clk
00:58:29]} {[%emt 00:00:25]} Rd1+ {[%clk 00:46:33]} {[%emt 00:00:15]} 27. Kg2
{[%clk 00:58:51]} {[%emt 00:00:08]} Bc5 {[%clk 00:42:31]} {[%emt 00:04:32]} 28.
Re2 {[%clk 00:52:21]} {[%emt 00:07:00]} Bb6 {[%clk 00:42:44]} {[%emt 00:00:17]}
29. Kf2 {[%clk 00:51:39]} {[%emt 00:01:12]} Rb1 {[%clk 00:41:48]} {[%emt
00:01:25]} 30. Bd4 {[%clk 00:51:11]} {[%emt 00:00:59]} c5 {[%clk 00:42:05]}
{[%emt 00:00:13]} 0-1

[Event "NJSK 2021 Jeugd C"]
[Site "Almelo, Netherlands"]
[Date "2021.08.07"]
[Round "9.3"]
[White "Labruyere, Roger"]
[Black "Dekker, Thiemen"]
[Result "1-0"]
[TimeControl "90min + 30sec/move"]
[WhiteElo "2003"]
[BlackElo "1806"]

1. e4 {[%clk 01:30:40]} {[%emt 00:00:19]} e5 {[%clk 01:30:57]} {[%emt
00:00:03]} 2. Nf3 {[%clk 01:31:05]} {[%emt 00:00:05]} Nc6 {[%clk 01:31:24]}
{[%emt 00:00:04]} 3. Bb5 {[%clk 01:30:34]} {[%emt 00:01:00]} f5 {[%clk
01:31:45]} {[%emt 00:00:09]} 4. exf5 {[%clk 01:30:57]} {[%emt 00:00:07]} e4
{[%clk 01:32:00]} {[%emt 00:00:15]} 5. Qe2 {[%clk 01:29:59]} {[%emt 00:01:27]}
Qe7 {[%clk 01:30:16]} {[%emt 00:02:15]} 6. Bxc6 {[%clk 01:30:19]} {[%emt
00:00:10]} dxc6 {[%clk 01:30:38]} {[%emt 00:00:08]} 7. Nd4 {[%clk 01:30:14]}
{[%emt 00:00:35]} Qe5 {[%clk 01:30:03]} {[%emt 00:01:06]} 8. Nf3 {[%clk
01:28:48]} {[%emt 00:01:55]} Qe7 {[%clk 01:30:14]} {[%emt 00:00:19]} 9. Nd4
{[%clk 01:28:16]} {[%emt 00:01:02]} Qe5 {[%clk 01:30:39]} {[%emt 00:00:06]} 10.
c3 {[%clk 01:27:41]} {[%emt 00:01:04]} Bxf5 {[%clk 01:23:36]} {[%emt 00:07:33]}
11. Nxf5 {[%clk 01:27:39]} {[%emt 00:00:32]} Qxf5 {[%clk 01:23:58]} {[%emt
00:00:09]} 12. d3 {[%clk 01:28:01]} {[%emt 00:00:07]} Nf6 {[%clk 01:22:30]}
{[%emt 00:01:58]} 13. Nd2 {[%clk 01:28:07]} {[%emt 00:00:24]} e3 {[%clk
01:19:10]} {[%emt 00:03:50]} 14. Qxe3+ {[%clk 01:26:53]} {[%emt 00:01:44]} Be7
{[%clk 01:19:25]} {[%emt 00:00:16]} 15. O-O {[%clk 01:27:00]} {[%emt 00:00:22]}
O-O-O {[%clk 01:13:48]} {[%emt 00:06:06]} 16. Qxe7 {[%clk 01:24:56]} {[%emt
00:02:35]} Rhe8 {[%clk 01:14:00]} {[%emt 00:00:19]} 17. Qb4 {[%clk 01:25:19]}
{[%emt 00:00:05]} Rxd3 {[%clk 01:07:57]} {[%emt 00:06:34]} 18. Nb3 {[%clk
01:14:45]} {[%emt 00:11:04]} Re4 {[%clk 00:58:31]} {[%emt 00:09:56]} 19. Nd4
{[%clk 01:05:13]} {[%emt 00:10:02]} Qh5 {[%clk 00:46:51]} {[%emt 00:12:09]} 20.
Be3 {[%clk 01:04:07]} {[%emt 00:01:36]} c5 {[%clk 00:32:03]} {[%emt 00:15:19]}
21. Qc4 {[%clk 01:01:59]} {[%emt 00:02:37]} cxd4 {[%clk 00:23:37]} {[%emt
00:08:57]} 22. Qxd3 {[%clk 01:02:14]} {[%emt 00:00:14]} dxe3 {[%clk 00:21:19]}
{[%emt 00:02:48]} 23. fxe3 {[%clk 01:02:12]} {[%emt 00:00:33]} Qe5 {[%clk
00:19:56]} {[%emt 00:01:54]} 24. Rf3 {[%clk 01:01:52]} {[%emt 00:00:49]} b5
{[%clk 00:17:48]} {[%emt 00:02:38]} 25. h3 {[%clk 01:01:38]} {[%emt 00:00:44]}
a6 {[%clk 00:15:58]} {[%emt 00:02:20]} 26. a4 {[%clk 01:00:30]} {[%emt
00:01:38]} Nd5 {[%clk 00:15:10]} {[%emt 00:01:19]} 27. axb5 {[%clk 00:59:02]}
{[%emt 00:01:57]} axb5 {[%clk 00:14:27]} {[%emt 00:01:14]} 28. Rf8+ {[%clk
00:58:07]} {[%emt 00:01:25]} Kd7 {[%clk 00:14:12]} {[%emt 00:00:46]} 29. Qxb5+
{[%clk 00:58:31]} {[%emt 00:00:05]} c6 {[%clk 00:13:40]} {[%emt 00:01:01]} 30.
Ra7+ {[%clk 00:58:54]} {[%emt 00:00:07]} Nc7 {[%clk 00:13:17]} {[%emt
00:00:54]} 31. Qxe5 {[%clk 00:59:19]} {[%emt 00:00:05]} 1-0

[Event "NJSK 2021 Jeugd C"]
[Site "Almelo, Netherlands"]
[Date "2021.08.07"]
[Round "9.4"]
[White "Verheij, Dana"]
[Black "Bakija, Alan"]
[Result "1/2-1/2"]
[TimeControl "90min + 30sec/move"]
[WhiteElo "1931"]
[BlackElo "1870"]

1. e4 {[%clk 01:30:56]} {[%emt 00:00:03]} c6 {[%clk 01:30:59]} {[%emt
00:00:03]} 2. Nc3 {[%clk 01:31:13]} {[%emt 00:00:13]} d5 {[%clk 01:31:26]}
{[%emt 00:00:03]} 3. Nf3 {[%clk 01:31:39]} {[%emt 00:00:04]} Bg4 {[%clk
01:31:53]} {[%emt 00:00:03]} 4. h3 {[%clk 01:31:53]} {[%emt 00:00:16]} Bxf3
{[%clk 01:32:19]} {[%emt 00:00:04]} 5. Qxf3 {[%clk 01:32:20]} {[%emt 00:00:04]}
e6 {[%clk 01:32:42]} {[%emt 00:00:06]} 6. d4 {[%clk 01:32:04]} {[%emt
00:00:45]} Qb6 {[%clk 01:21:32]} {[%emt 00:11:41]} 7. exd5 {[%clk 01:25:19]}
{[%emt 00:07:14]} cxd5 {[%clk 01:20:57]} {[%emt 00:01:05]} 8. Bb5+ {[%clk
01:22:57]} {[%emt 00:02:53]} Nc6 {[%clk 01:21:12]} {[%emt 00:00:14]} 9. O-O
{[%clk 01:17:50]} {[%emt 00:05:37]} Nf6 {[%clk 01:18:34]} {[%emt 00:03:08]} 10.
Re1 {[%clk 01:14:55]} {[%emt 00:03:25]} Be7 {[%clk 01:06:34]} {[%emt 00:12:32]}
11. Qg3 {[%clk 01:09:11]} {[%emt 00:06:11]} g6 {[%clk 00:38:26]} {[%emt
00:28:40]} 12. Be3 {[%clk 00:57:08]} {[%emt 00:12:33]} O-O {[%clk 00:34:09]}
{[%emt 00:04:47]} 13. a3 {[%clk 00:38:43]} {[%emt 00:18:55]} a6 {[%clk
00:23:23]} {[%emt 00:11:16]} 14. Bd3 {[%clk 00:37:41]} {[%emt 00:01:31]} Rfc8
{[%clk 00:22:12]} {[%emt 00:01:42]} 15. Na4 {[%clk 00:34:14]} {[%emt 00:03:57]}
Qc7 {[%clk 00:19:36]} {[%emt 00:03:06]} 16. Qxc7 {[%clk 00:33:25]} {[%emt
00:01:18]} Rxc7 {[%clk 00:19:57]} {[%emt 00:00:10]} 17. Bf4 {[%clk 00:33:21]}
{[%emt 00:00:33]} e5 {[%clk 00:16:16]} {[%emt 00:04:11]} 18. dxe5 {[%clk
00:33:17]} {[%emt 00:00:34]} Nh5 {[%clk 00:15:00]} {[%emt 00:01:46]} 19. Bh2
{[%clk 00:31:33]} {[%emt 00:02:12]} b5 {[%clk 00:11:26]} {[%emt 00:04:06]} 20.
Nc3 {[%clk 00:28:30]} {[%emt 00:03:33]} Rd7 {[%clk 00:10:01]} {[%emt 00:01:56]}
21. e6 {[%clk 00:27:26]} {[%emt 00:01:32]} fxe6 {[%clk 00:10:25]} {[%emt
00:00:06]} 22. Rxe6 {[%clk 00:27:43]} {[%emt 00:00:13]} Rc8 {[%clk 00:10:32]}
{[%emt 00:00:24]} 23. Rae1 {[%clk 00:27:19]} {[%emt 00:00:53]} Ng7 {[%clk
00:10:12]} {[%emt 00:00:51]} 24. R6e2 {[%clk 00:26:18]} {[%emt 00:01:30]} Bg5
{[%clk 00:08:05]} {[%emt 00:02:39]} 25. a4 {[%clk 00:24:47]} {[%emt 00:02:00]}
Nd4 {[%clk 00:06:43]} {[%emt 00:01:52]} 26. Re5 {[%clk 00:24:36]} {[%emt
00:00:40]} Bd2 {[%clk 00:06:51]} {[%emt 00:00:23]} 27. Rd1 {[%clk 00:23:44]}
{[%emt 00:01:19]} Bxc3 {[%clk 00:06:04]} {[%emt 00:01:20]} 28. bxc3 {[%clk
00:24:08]} {[%emt 00:00:06]} Rxc3 {[%clk 00:06:21]} {[%emt 00:00:13]} 29. axb5
{[%clk 00:23:29]} {[%emt 00:01:10]} axb5 {[%clk 00:06:24]} {[%emt 00:00:27]} 30.
Bf4 {[%clk 00:21:02]} {[%emt 00:02:52]} Ngf5 {[%clk 00:02:21]} {[%emt
00:04:36]} 31. Bxf5 {[%clk 00:17:22]} {[%emt 00:04:11]} Nxf5 {[%clk 00:02:48]}
{[%emt 00:00:03]} 32. Rdxd5 {[%clk 00:16:27]} {[%emt 00:01:25]} Rxd5 {[%clk
00:03:03]} {[%emt 00:00:15]} 33. Rxd5 {[%clk 00:16:52]} {[%emt 00:00:04]} Rxc2
{[%clk 00:03:02]} {[%emt 00:00:32]} 34. Rxb5 {[%clk 00:17:10]} {[%emt
00:00:12]} Rc4 {[%clk 00:03:12]} {[%emt 00:00:18]} 35. Be3 {[%clk 00:15:09]}
{[%emt 00:02:26]} Re4 {[%clk 00:03:02]} {[%emt 00:00:47]} 36. Rb3 {[%clk
00:14:58]} {[%emt 00:00:39]} h5 {[%clk 00:02:34]} {[%emt 00:01:01]} 37. Bg5
{[%clk 00:14:30]} {[%emt 00:00:50]} Re1+ {[%clk 00:02:24]} {[%emt 00:00:47]} 38.
Kh2 {[%clk 00:14:56]} {[%emt 00:00:04]} Re2 {[%clk 00:02:46]} {[%emt 00:00:09]}
39. Be3 {[%clk 00:12:16]} {[%emt 00:03:08]} Rc2 {[%clk 00:02:57]} {[%emt
00:00:19]} 40. g4 {[%clk 00:12:19]} {[%emt 00:00:27]} hxg4 {[%clk 00:02:45]}
{[%emt 00:00:43]} 41. hxg4 {[%clk 00:12:44]} {[%emt 00:00:04]} Nxe3 {[%clk
00:03:07]} {[%emt 00:00:09]} 1/2-1/2

[Event "NJSK 2021 Jeugd C"]
[Site "Almelo, Netherlands"]
[Date "2021.08.07"]
[Round "9.5"]
[White "Blom, Rens"]
[Black "Zecha, Oscar"]
[Result "0-1"]
[TimeControl "90min + 30sec/move"]
[WhiteElo "1650"]
[BlackElo "1650"]

1. c4 {[%clk 01:30:59]} Nf6 {[%clk 01:30:56]} {[%emt 00:00:05]} 2. Nc3 {[%clk
01:31:25]} {[%emt 00:00:04]} e6 {[%clk 01:31:23]} {[%emt 00:00:03]} 3. e4
{[%clk 01:31:52]} {[%emt 00:00:03]} c5 {[%clk 01:31:50]} {[%emt 00:00:02]} 4.
e5 {[%clk 01:32:19]} {[%emt 00:00:03]} Ng8 {[%clk 01:32:17]} {[%emt 00:00:03]}
5. Nf3 {[%clk 01:32:46]} {[%emt 00:00:03]} Nc6 {[%clk 01:32:43]} {[%emt
00:00:05]} 6. d4 {[%clk 01:33:13]} {[%emt 00:00:03]} cxd4 {[%clk 01:33:09]}
{[%emt 00:00:03]} 7. Nxd4 {[%clk 01:33:40]} {[%emt 00:00:03]} Nxe5 {[%clk
01:33:38]} {[%emt 00:00:02]} 8. Ndb5 {[%clk 01:34:04]} {[%emt 00:00:06]} a6
{[%clk 01:33:52]} {[%emt 00:00:16]} 9. Nd6+ {[%clk 01:34:29]} {[%emt 00:00:04]}
Bxd6 {[%clk 01:34:19]} {[%emt 00:00:03]} 10. Qxd6 {[%clk 01:34:53]} {[%emt
00:00:06]} f6 {[%clk 01:34:47]} {[%emt 00:00:03]} 11. Be3 {[%clk 01:35:15]}
{[%emt 00:00:08]} Ne7 {[%clk 01:35:14]} {[%emt 00:00:03]} 12. Bb6 {[%clk
01:35:39]} {[%emt 00:00:06]} Nf5 {[%clk 01:35:41]} {[%emt 00:00:03]} 13. Qb4
{[%clk 01:35:55]} {[%emt 00:00:13]} Nc6 {[%clk 01:36:07]} {[%emt 00:00:04]} 14.
Qc5 {[%clk 01:36:20]} {[%emt 00:00:05]} Qe7 {[%clk 01:36:32]} {[%emt 00:00:05]}
15. Qxe7+ {[%clk 01:36:03]} {[%emt 00:00:47]} Nfxe7 {[%clk 01:36:58]} {[%emt
00:00:04]} 16. O-O-O {[%clk 01:36:18]} {[%emt 00:00:15]} d5 {[%clk 01:37:21]}
{[%emt 00:00:07]} 17. cxd5 {[%clk 01:35:34]} {[%emt 00:01:14]} Nxd5 {[%clk
01:37:43]} {[%emt 00:00:07]} 18. Nxd5 {[%clk 01:35:51]} {[%emt 00:00:14]} exd5
{[%clk 01:38:09]} {[%emt 00:00:05]} 19. g3 {[%clk 01:32:36]} {[%emt 00:03:45]}
Bf5 {[%clk 01:32:25]} {[%emt 00:06:14]} 20. Bg2 {[%clk 01:28:49]} {[%emt
00:04:15]} Nb4 {[%clk 01:30:02]} {[%emt 00:02:54]} 21. Rhe1+ {[%clk 01:25:00]}
{[%emt 00:04:19]} Kf7 {[%emt 00:01:50]} 22. Bxd5+ {[%clk 01:23:29]} {[%emt
00:01:59]} Nxd5 {[%clk 01:28:21]} {[%emt 00:00:53]} 23. Rxd5 {[%clk 01:23:54]}
{[%emt 00:00:06]} Rac8+ {[%clk 01:28:32]} {[%emt 00:00:18]} 24. Kd1 {[%clk
01:20:50]} {[%emt 00:03:35]} Be6 {[%clk 01:21:52]} {[%emt 00:07:09]} 25. Rd6
{[%clk 01:17:12]} {[%emt 00:04:08]} Bxa2 {[%clk 01:21:53]} {[%emt 00:00:29]} 26.
Rd7+ {[%clk 01:16:25]} {[%emt 00:01:16]} Kg6 {[%emt 00:00:19]} 27. Ree7 {[%clk
01:13:53]} {[%emt 00:02:51]} Bb3+ {[%clk 01:16:35]} {[%emt 00:06:12]} 28. Kd2
{[%clk 01:13:02]} {[%emt 00:01:20]} Rc2+ {[%clk 01:13:52]} {[%emt 00:03:13]} 29.
Ke3 {[%clk 01:11:13]} {[%emt 00:02:20]} Rg8 {[%clk 01:10:21]} {[%emt 00:04:00]}
30. Bd4 {[%clk 01:06:58]} {[%emt 00:04:45]} b5 {[%clk 01:07:10]} {[%emt
00:03:41]} 31. Ra7 {[%clk 01:01:20]} {[%emt 00:06:07]} Bc4 {[%clk 01:06:54]}
{[%emt 00:00:46]} 32. Kf4 {[%clk 00:58:05]} {[%emt 00:03:46]} b4 {[%clk
01:04:10]} {[%emt 00:03:13]} 33. h4 {[%clk 00:52:51]} {[%emt 00:05:44]} h5
{[%clk 00:49:00]} {[%emt 00:15:40]} 34. g4 {[%clk 00:44:57]} {[%emt 00:08:24]}
hxg4 {[%clk 00:47:04]} {[%emt 00:02:26]} 35. Kxg4 {[%clk 00:44:44]} {[%emt
00:00:43]} Be2+ {[%clk 00:35:39]} {[%emt 00:11:54]} 36. f3 {[%clk 00:44:14]}
{[%emt 00:01:00]} Rc4 {[%clk 00:34:36]} {[%emt 00:01:33]} 37. Rxe2 {[%clk
00:41:07]} {[%emt 00:03:38]} Rxd4+ {[%clk 00:35:00]} {[%emt 00:00:07]} 38. Re4
{[%clk 00:41:34]} {[%emt 00:00:02]} f5+ {[%emt 00:05:09]} 0-1